bitfinex-derivatives/quotes_BTCF0:USTF0_20250929
["timestamp","ask_amount","ask_price","bid_price","bid_amount"]
[1759154748814,0.54185444,113470.0,113460.0,0.88577924]
[1759154749316,1.06993444,113470.0,113460.0,0.5336776]
[1759154749513,1.42203608,113470.0,113460.0,0.5336776]
[1759154749720,0.53315608,113470.0,113460.0,0.5336776]
[1759154749903,1.42199608,113470.0,113460.0,0.5336776]
[1759154751412,1.78279608,113470.0,113460.0,0.5336776]
[1759154751609,1.43069444,113470.0,113460.0,0.5336776]
[1759154751918,1.42199608,113470.0,113460.0,0.5336776]
[1759154752418,1.42179608,113470.0,113460.0,0.5336776]
[1759154752815,0.53315608,113470.0,113460.0,0.5336776]
[1759154753020,1.42179608,113470.0,113460.0,0.5336776]
[1759154753414,1.78259608,113470.0,113460.0,0.5336776]
[1759154754108,2.13469772,113470.0,113460.0,0.5336776]
[1759154754309,1.78259608,113470.0,113460.0,0.5336776]
[1759154754512,2.13469772,113470.0,113460.0,0.44559]
[1759154755116,2.15591979,113470.0,113460.0,0.44559]
[1759154755615,2.15591979,113470.0,113460.0,0.04559]
[1759154755812,2.56797979,113470.0,113460.0,0.00988]
[1759154756218,1.86377651,113470.0,113460.0,0.00988]
[1759154756423,2.56797979,113470.0,113460.0,0.03319]
[1759154756921,2.56797979,113470.0,113460.0,0.00988]
[1759154757424,2.56765979,113470.0,113460.0,0.00988]
[1759154759818,2.59935034,113470.0,113460.0,0.00988]
[1759154760323,2.59919034,113470.0,113460.0,0.03319]
[1759154760522,2.59915034,113470.0,113460.0,0.03319]
[1759154760821,1.67933979,113470.0,113460.0,0.03319]
[1759154761014,2.56745979,113470.0,113460.0,0.03319]
[1759154761214,0.47499661,113470.0,113460.0,0.1343753]
[1759154761522,1.44201515,113470.0,113460.0,1.24639694]
[1759154761724,0.46629825,113470.0,113460.0,1.24639694]
[1759154762324,1.33181825,113470.0,113460.0,1.24639694]
[1759154762528,1.33141825,113470.0,113460.0,1.24639694]
[1759154762724,1.33181825,113470.0,113460.0,1.24639694]
[1759154762918,0.44381825,113470.0,113460.0,1.24639694]
[1759154763118,1.33177825,113470.0,113460.0,1.24639694]
[1759154763318,1.44135515,113470.0,113460.0,0.8942953]
[1759154763520,0.44381825,113470.0,113460.0,1.24639694]
[1759154763726,1.33173825,113470.0,113460.0,1.24639694]
[1759154764026,1.33133825,113470.0,113460.0,1.24639694]
[1759154764227,1.33173825,113470.0,113460.0,1.24639694]
[1759154764625,0.44381825,113470.0,113460.0,1.24639694]
[1759154764820,1.33169825,113470.0,113460.0,1.24639694]
[1759154765015,1.41977475,113470.0,113460.0,1.24639694]
[1759154765519,0.44381825,113470.0,113460.0,1.24639694]
[1759154765724,0.02162207,113470.0,113460.0,1.59849858]
[1759154765923,0.02122207,113470.0,113460.0,1.59849858]
[1759154766121,0.88768,113480.0,113470.0,0.0880764]
[1759154766322,0.46166244,113490.0,113480.0,0.1244786]
[1759154766628,0.46221393,113490.0,113480.0,0.83738024]
[1759154766827,1.23974164,113490.0,113480.0,1.23738024]
[1759154767033,1.24014164,113490.0,113480.0,1.23738024]
[1759154767225,1.23974164,113490.0,113480.0,1.23738024]
[1759154767528,1.32820244,113490.0,113480.0,1.23738024]
[1759154767730,1.32808244,113490.0,113480.0,1.23738024]
[1759154767929,0.44056244,113490.0,113480.0,1.23738024]
[1759154768224,1.34575244,113490.0,113480.0,0.8721786]
[1759154768427,0.1162387,113480.0,113470.0,0.02331]
[1759154768632,1.17254362,113480.0,113470.0,0.02331]
[1759154768827,0.82044198,113480.0,113470.0,0.02331]
[1759154769025,0.1212387,113480.0,113470.0,0.02331]
[1759154769224,0.4820387,113480.0,113470.0,0.02331]
[1759154769427,1.18624198,113480.0,113470.0,0.02331]
[1759154770629,0.4703687,113480.0,113470.0,0.03641]
[1759154770823,1.17457198,113480.0,113470.0,0.03641]
[1759154771028,1.18624198,113480.0,113470.0,0.02331]
[1759154771428,0.0880765,113470.0,113460.0,0.0131]
[1759154771730,1.70971814,113470.0,113460.0,0.03641]
[1759154771927,1.3576165,113470.0,113460.0,0.03641]
[1759154772133,1.70971814,113470.0,113460.0,0.03641]
[1759154772330,1.3576165,113470.0,113460.0,0.03641]
[1759154772538,1.70971814,113470.0,113460.0,0.03641]
[1759154772836,1.70971814,113470.0,113460.0,0.03941]
[1759154773035,1.70971814,113470.0,113460.0,0.04541]
[1759154774230,1.3576165,113470.0,113460.0,0.48559584]
[1759154774430,0.82247814,113470.0,113460.0,0.1334942]
[1759154774631,1.70947814,113470.0,113460.0,0.48559584]
[1759154775034,1.70947814,113470.0,113460.0,0.16449166]
[1759154775332,1.70947814,113470.0,113460.0,0.5165933]
[1759154776135,1.72114814,113470.0,113460.0,0.03999746]
[1759154776333,2.47324978,113470.0,113460.0,0.03999746]
[1759154776544,2.11244978,113470.0,113460.0,0.009]
[1759154776833,2.83404978,113470.0,113460.0,0.009]
[1759154777038,2.1298465,113470.0,113460.0,0.009]
[1759154777430,2.43388978,113470.0,113460.0,0.03156]
[1759154777938,2.43388978,113470.0,113460.0,0.009]
[1759154779235,2.43388978,113470.0,113460.0,0.03124]
[1759154779531,2.43388978,113470.0,113460.0,0.009]
[1759154782132,2.43388978,113470.0,113460.0,0.03124]
[1759154782736,2.43388978,113470.0,113460.0,0.009]
[1759154785643,1.54704978,113470.0,113460.0,0.034062]
[1759154785841,2.43352978,113470.0,113460.0,0.048062]
[1759154786041,2.43352978,113470.0,113460.0,0.034062]
[1759154786640,2.43352978,113470.0,113460.0,0.03521297]
[1759154787438,2.43328978,113470.0,113460.0,0.03521297]
[1759154788037,0.8428465,113470.0,113460.0,0.03521297]
[1759154788238,2.08148198,113470.0,113460.0,0.03521297]
[1759154788438,1.19528198,113470.0,113460.0,0.03521297]
[1759154788639,2.08148198,113470.0,113460.0,0.03521297]
[1759154788847,2.08144198,113470.0,113460.0,0.03521297]
[1759154789043,1.19528198,113470.0,113460.0,0.03521297]
[1759154789547,2.08140198,113470.0,113460.0,0.03521297]
[1759154789738,1.19528198,113470.0,113460.0,0.03521297]
[1759154790246,2.08136198,113470.0,113460.0,0.03521297]
[1759154790541,1.18361198,113470.0,113460.0,0.13729777]
[1759154790940,2.06965198,113470.0,113460.0,0.13729777]
[1759154791142,2.06965198,113470.0,113460.0,0.04921297]
[1759154791946,2.06965198,113470.0,113460.0,0.13729777]
[1759154792148,0.82281198,113470.0,113460.0,0.13729777]
[1759154792341,0.470377,113470.0,113460.0,0.56829523]
[1759154792548,0.995897,113470.0,113460.0,0.56829523]
[1759154792744,2.07362796,113470.0,113460.0,0.04397043]
[1759154792943,1.71282796,113470.0,113460.0,0.01297297]
[1759154793142,1.36039248,113470.0,113460.0,0.01297297]
[1759154793342,1.72119248,113470.0,113460.0,0.01297297]
[1759154793542,1.368757,113470.0,113460.0,0.01297297]
[1759154793744,1.72119248,113470.0,113460.0,0.01297297]
[1759154793942,1.368757,113470.0,113460.0,0.01297297]
[1759154794142,1.72119248,113470.0,113460.0,0.01297297]
[1759154794746,1.72119248,113470.0,113460.0,0.03521297]
[1759154795142,0.482837,113470.0,113460.0,0.03521297]
[1759154795347,1.70909248,113470.0,113460.0,0.04921297]
[1759154795540,1.70897248,113470.0,113460.0,0.04921297]
[1759154795938,1.70853248,113470.0,113460.0,0.04921297]
[1759154796546,1.70893248,113470.0,113460.0,0.04921297]
[1759154796849,0.82321248,113470.0,113460.0,0.04921297]
[1759154797048,0.73513548,113470.0,113460.0,0.13729767]
[1759154797248,1.70889248,113470.0,113460.0,0.13729767]
[1759154797444,1.72055248,113470.0,113460.0,0.04397043]
[1759154797650,1.72095248,113470.0,113460.0,0.01297297]
[1759154800443,1.368517,113470.0,113460.0,0.01297297]
[1759154800649,1.70889248,113470.0,113460.0,0.04921297]
[1759154801151,1.70869248,113470.0,113460.0,0.13729777]
[1759154801351,1.356257,113470.0,113460.0,0.13729777]
[1759154801556,1.70829248,113470.0,113460.0,0.13729777]
[1759154801748,0.46241248,113470.0,113460.0,0.13729777]
[1759154801947,1.34745248,113470.0,113460.0,0.13729777]
[1759154802351,1.34785248,113470.0,113460.0,0.13729777]
[1759154802551,0.37433548,113470.0,113460.0,0.13729767]
[1759154802852,0.9073,113470.0,113460.0,0.16829513]
[1759154803053,0.9069,113470.0,113460.0,0.16829513]
[1759154803252,1.25973548,113470.0,113460.0,0.16829513]
[1759154803554,0.82321248,113470.0,113460.0,0.16829509]
[1759154803852,1.70853248,113470.0,113460.0,0.15517509]
[1759154804049,2.47302796,113470.0,113460.0,0.04485029]
[1759154804249,2.11222796,113470.0,113460.0,0.01385283]
[1759154804747,2.83382796,113470.0,113460.0,0.01385283]
[1759154804944,0.1109048,113460.0,113450.0,8.538e-05]
[1759154805150,0.0881003,113440.0,113430.0,0.53074409]
[1759154805349,0.1109203,113440.0,113430.0,0.53074409]
[1759154805550,0.46335578,113440.0,113430.0,0.44263619]
[1759154805750,0.46335578,113440.0,113430.0,0.08183619]
[1759154806152,0.45442289,113440.0,113430.0,0.08183619]
[1759154806350,0.53980789,113440.0,113430.0,0.08183619]
[1759154806551,0.53980789,113440.0,113430.0,0.09383619]
[1759154806942,0.53980789,113440.0,113430.0,0.08183619]
[1759154807142,0.90160789,113440.0,113430.0,0.10383619]
[1759154807346,0.91275789,113440.0,113430.0,0.06849619]
[1759154807947,0.92139403,113440.0,113430.0,0.06849619]
[1759154808151,0.92239403,113440.0,113430.0,0.04649619]
[1759154808354,0.99343029,113440.0,113420.0,0.14861109]
[1759154808654,1.70659048,113430.0,113420.0,0.17045109]
[1759154808849,1.70459048,113430.0,113420.0,0.17045109]
[1759154809050,1.70359048,113430.0,113420.0,0.17045109]
[1759154809655,1.70359048,113430.0,113420.0,0.17245109]
[1759154809951,0.11538951,113440.0,113430.0,0.1015682]
[1759154810256,1.88739049,113440.0,113430.0,0.08179619]
[1759154810452,1.44957001,113440.0,113430.0,0.0353]
[1759154810652,1.88739049,113440.0,113430.0,0.0353]
[1759154811050,1.90724126,113440.0,113430.0,0.0353]
[1759154811251,0.1107584,113430.0,113420.0,0.08633619]
[1759154811446,0.82127048,113430.0,113420.0,0.08633619]
[1759154811647,0.90789,113430.0,113420.0,0.17445239]
[1759154811854,0.09375337,113440.0,113430.0,0.1234084]
[1759154812061,0.09455337,113440.0,113430.0,0.1234084]
[1759154812262,1.00879337,113440.0,113430.0,0.1274084]
[1759154812555,1.09609317,113440.0,113430.0,0.17390459]
[1759154812754,0.12315337,113440.0,113430.0,0.17390459]
[1759154812951,1.06749267,113440.0,113430.0,0.16990459]
[1759154813160,0.55405267,113440.0,113430.0,0.08279619]
[1759154813450,1.43929267,113440.0,113430.0,0.0363]
[1759154813657,1.87711315,113440.0,113430.0,0.08279619]
[1759154814253,1.87711315,113440.0,113430.0,0.001]
[1759154814254,1.88822315,113440.0,113430.0,0.001]
[1759154814566,1.88822315,113440.0,113430.0,0.04749619]
[1759154815061,1.88822315,113440.0,113430.0,0.001]
[1759154819552,1.88814315,113440.0,113430.0,0.001]
[1759154819760,1.87699315,113440.0,113430.0,0.02284]
[1759154819955,1.87699315,113440.0,113430.0,0.001]
[1759154820164,2.27699315,113440.0,113430.0,0.001]
[1759154821070,0.1228188,113430.0,113420.0,0.04649619]
[1759154821266,0.1228188,113430.0,113410.0,0.01488]
[1759154821267,0.1107665,113420.0,113410.0,0.04747526]
[1759154821565,1.79455236,113420.0,113410.0,0.04747526]
[1759154822162,0.90947236,113420.0,113410.0,0.04747526]
[1759154822364,0.90947236,113420.0,113410.0,0.04659526]
[1759154822563,1.79251236,113420.0,113410.0,0.04659526]
[1759154823173,0.1107742,113410.0,113400.0,0.1239718]
[1759154823375,0.90939468,113410.0,113400.0,0.1239718]
[1759154823976,0.82127048,113410.0,113400.0,0.1239718]
[1759154824174,0.38345,113410.0,113400.0,0.1239718]
[1759154824474,0.90665,113410.0,113400.0,0.5239718]
[1759154824870,0.80770586,113420.0,113400.0,0.5239718]
[1759154825075,0.00988538,113420.0,113410.0,0.4842242]
[1759154825271,0.88588538,113420.0,113410.0,0.4842242]
[1759154825472,8.538e-05,113420.0,113410.0,0.1234242]
[1759154825668,0.00048538,113420.0,113410.0,0.1234242]
[1759154826273,0.00048538,113420.0,113410.0,0.4842242]
[1759154826477,0.01048538,113420.0,113410.0,0.4852242]
[1759154827277,0.03313538,113420.0,113410.0,0.4852242]
[1759154827485,0.47095586,113420.0,113410.0,0.1244242]
[1759154827676,0.02313538,113420.0,113410.0,0.1234242]
[1759154827879,0.46095586,113420.0,113410.0,0.1234242]
[1759154828081,0.11725178,113420.0,113410.0,0.1244242]
[1759154828382,0.91587226,113420.0,113410.0,0.1244242]
[1759154828977,0.91401538,113420.0,113410.0,0.1244242]
[1759154829177,0.02913538,113420.0,113410.0,0.1244242]
[1759154829879,0.00648538,113420.0,113410.0,0.4852242]
[1759154830182,0.00648538,113420.0,113410.0,0.8852242]
[1759154830378,0.61259626,113440.0,113430.0,0.01346]
[1759154830579,0.61259626,113440.0,113430.0,0.0353]
[1759154830775,0.07103626,113440.0,113430.0,0.1234086]
[1759154830975,0.0004,113440.0,113430.0,0.1234086]
[1759154831385,0.07137994,113440.0,113430.0,0.1234086]
[1759154831589,0.07097994,113440.0,113430.0,0.1234086]
[1759154831883,0.04005,113440.0,113430.0,0.1244086]
[1759154832079,0.05105,113440.0,113430.0,0.002]
[1759154832280,0.93777138,113440.0,113430.0,0.0373]
[1759154832780,0.84967048,113440.0,113430.0,0.1254086]
[1759154833376,0.92091119,113440.0,113430.0,0.1254086]
[1759154834087,1.00901209,113440.0,113430.0,0.1254086]
[1759154834982,0.92091119,113440.0,113430.0,0.1254086]
[1759154835282,1.00901209,113440.0,113430.0,0.1254086]
[1759154836581,0.48309071,113440.0,113430.0,0.1254086]
[1759154836885,0.92091119,113440.0,113430.0,0.1254086]
[1759154837085,0.48309071,113440.0,113430.0,0.1254086]
[1759154837287,1.00901209,113440.0,113430.0,0.1254086]
[1759154837686,1.80559119,113440.0,113430.0,0.1254086]
[1759154837986,1.44479119,113440.0,113430.0,0.1254086]
[1759154838891,1.00697071,113440.0,113430.0,0.1254086]
[1759154839091,0.56011119,113440.0,113430.0,0.1254086]
[1759154839285,0.0284,113440.0,113430.0,0.1254086]
[1759154839491,0.028,113440.0,113430.0,0.8862086]
[1759154839692,0.0284,113440.0,113430.0,0.93280386]
[1759154839888,0.91132808,113470.0,113460.0,0.1243153]
[1759154840087,1.81380246,113470.0,113460.0,0.1243153]
[1759154840289,1.81420246,113470.0,113460.0,0.1243153]
[1759154840587,1.81420246,113470.0,113440.0,0.4624309]
[1759154840588,0.02263,113450.0,113440.0,0.4851261]
[1759154840788,0.46045048,113450.0,113440.0,0.1243261]
[1759154841188,0.54854358,113450.0,113440.0,0.17092136]
[1759154841393,0.46045048,113450.0,113440.0,0.17092136]
[1759154841989,0.02263,113450.0,113440.0,0.57092136]
[1759154842292,0.04563,113450.0,113440.0,0.57292136]
[1759154842487,0.04563,113450.0,113440.0,0.57392136]
[1759154843697,0.04563,113450.0,113440.0,0.5273261]
[1759154844890,0.04563,113450.0,113440.0,0.1273261]
[1759154848796,0.04563,113450.0,113440.0,0.4881261]
[1759154848797,0.023,113450.0,113440.0,0.4881261]
[1759154849295,0.0234,113450.0,113440.0,0.4881261]
[1759154850493,0.0234,113450.0,113440.0,1.43884597]
[1759154850898,0.0234,113450.0,113440.0,0.8881261]
[1759154851099,0.023,113450.0,113440.0,0.8881261]
[1759154851294,0.0234,113450.0,113440.0,0.8881261]
[1759154851688,0.1114931,113450.0,113440.0,0.1273261]
[1759154851893,0.1462229,113450.0,113440.0,0.03923]
[1759154852089,1.05774277,113450.0,113440.0,0.03923]
[1759154852492,1.05774277,113450.0,113440.0,0.0257]
[1759154852696,2.34206277,113450.0,113440.0,0.003]
[1759154853706,2.34206277,113450.0,113440.0,1e-07]
[1759154854401,1.7913429,113450.0,113440.0,1e-07]
[1759154854607,2.34206277,113450.0,113440.0,1e-07]
[1759154855700,0.5070229,113450.0,113440.0,0.0227001]
[1759154855910,1.94206277,113450.0,113440.0,0.0227001]
[1759154856400,2.36193365,113450.0,113440.0,1e-07]
[1759154857104,0.1107303,113440.0,113420.0,0.04659526]
[1759154857301,0.1235858,113420.0,113410.0,0.06929526]
[1759154857497,0.4843858,113420.0,113410.0,0.06929526]
[1759154857805,1.44389037,113420.0,113410.0,0.04659526]
[1759154858405,1.43589037,113420.0,113410.0,0.04659526]
[1759154858711,2.32017037,113420.0,113410.0,0.05459526]
[1759154859411,1.92017037,113420.0,113410.0,0.05459526]
[1759154860006,1.92017037,113420.0,113410.0,0.04659526]
[1759154860206,1.03589037,113420.0,113410.0,0.14471906]
[1759154860408,1.03589037,113420.0,113410.0,0.05659526]
[1759154860611,1.92021037,113420.0,113410.0,0.05659526]
[1759154861310,1.92021037,113420.0,113410.0,0.01]
[1759154862002,2.32021037,113420.0,113410.0,0.01]
[1759154862204,0.1107554,113410.0,113400.0,0.04659526]
[1759154862509,1.02227527,113410.0,113400.0,0.04659526]
[1759154863309,1.90655527,113410.0,113400.0,0.05459526]
[1759154863910,1.90655527,113410.0,113400.0,0.05059526]
[1759154864311,1.90655527,113410.0,113400.0,0.004]
[1759154864498,1.90659527,113410.0,113400.0,0.004]
[1759154864699,0.38343,113410.0,113400.0,0.1283627]
[1759154864902,1.90659477,113410.0,113400.0,0.17495796]
[1759154865113,0.38383,113410.0,113400.0,0.17495796]
[1759154865306,1.26815,113410.0,113400.0,0.17495796]
[1759154865517,1.26775,113410.0,113400.0,0.17495796]
[1759154865812,1.26815,113410.0,113400.0,0.17495796]
[1759154866114,0.995075,113410.0,113400.0,0.17495796]
[1759154866410,1.90699487,113410.0,113400.0,0.17495796]
[1759154866706,0.471955,113410.0,113400.0,0.17495796]
[1759154866906,0.38383,113410.0,113400.0,0.17495796]
[1759154867215,0.02303,113410.0,113400.0,0.17495796]
[1759154867408,0.0004,113410.0,113400.0,1.12567783]
[1759154867709,0.02263,113420.0,113410.0,0.124355]
[1759154868014,0.38376,113440.0,113430.0,0.1228394]
[1759154868214,1.1585817,113440.0,113430.0,0.1228394]
[1759154868708,1.1581817,113440.0,113430.0,0.1228394]
[1759154868906,0.0881094,113430.0,113420.0,0.01353]
[1759154869106,0.4718694,113430.0,113420.0,0.03509]
[1759154869303,0.02296,113430.0,113420.0,0.1232012]
[1759154869507,0.90724,113430.0,113420.0,0.5232012]
[1759154869809,0.90764,113430.0,113420.0,0.5232012]
[1759154870112,0.90764,113430.0,113420.0,0.1232012]
[1759154871006,0.91164,113430.0,113420.0,0.1232012]
[1759154871207,0.9116,113430.0,113420.0,0.1232012]
[1759154871406,0.9096,113430.0,113420.0,0.1232012]
[1759154873805,1.2704,113430.0,113420.0,0.1232012]
[1759154874410,1.91669937,113430.0,113420.0,0.1232012]
[1759154874609,1.91669937,113430.0,113420.0,0.0881112]
[1759154875001,0.02296,113420.0,113410.0,0.16980476]
[1759154875206,0.4718773,113420.0,113410.0,0.16980476]
[1759154875803,1.02259717,113420.0,113410.0,0.16980476]
[1759154876005,1.03543717,113420.0,113410.0,0.16980476]
[1759154876206,0.4847173,113420.0,113410.0,0.16980476]
[1759154876407,0.4847173,113420.0,113410.0,0.17180476]
[1759154876809,0.4847173,113420.0,113410.0,0.16980476]
[1759154877114,0.4847173,113420.0,113410.0,0.17080476]
[1759154878314,1.3687573,113420.0,113410.0,0.17080476]
[1759154878513,0.02296,113420.0,113410.0,0.17080476]
[1759154878811,0.02296,113420.0,113410.0,1.48232463]
[1759154879004,0.90696,113430.0,113420.0,0.1228472]
[1759154879211,0.02296,113430.0,113420.0,0.1228472]
[1759154879404,1.3566695,113430.0,113420.0,0.1228472]
[1759154879609,1.3558695,113430.0,113420.0,0.1228472]
[1759154879809,1.26816,113430.0,113420.0,0.1228472]
[1759154880006,0.02336,113430.0,113420.0,0.1228472]
[1759154880205,0.02736,113430.0,113420.0,0.93024246]
[1759154880513,0.38376,113450.0,113440.0,0.1228317]
[1759154880718,0.02376,113450.0,113440.0,0.67355157]
[1759154880917,0.0008,113450.0,113440.0,1.03435157]
[1759154881119,0.90688,113460.0,113450.0,0.122824]
[1759154881311,0.02376,113460.0,113450.0,0.122824]
[1759154881614,0.90688,113460.0,113450.0,0.122824]
[1759154881812,0.02336,113460.0,113450.0,0.122824]
[1759154882215,0.0004,113460.0,113450.0,0.883624]
[1759154882611,0.0004,113460.0,113450.0,1.43434387]
[1759154883218,0.38456,113470.0,113460.0,0.1228163]
[1759154883410,0.40443346,113470.0,113460.0,0.1228163]
[1759154884016,0.04363346,113470.0,113460.0,0.1228163]
[1759154884419,0.02376,113470.0,113460.0,0.1228163]
[1759154884613,0.41356,113470.0,113460.0,0.1248163]
[1759154884909,0.0726297,113470.0,113460.0,0.1248163]
[1759154885115,0.4044297,113470.0,113460.0,0.1228163]
[1759154885314,0.0436297,113470.0,113460.0,0.1228163]
[1759154885719,0.4044297,113470.0,113460.0,0.1228163]
[1759154886716,0.5053484,113470.0,113460.0,0.1096463]
[1759154887012,0.4044297,113470.0,113460.0,0.1228163]
[1759154888220,1.2880297,113470.0,113460.0,0.1228163]
[1759154888421,1.2879497,113470.0,113460.0,0.1228163]
[1759154888615,1.2871497,113470.0,113460.0,0.1228163]
[1759154888816,1.2875497,113470.0,113460.0,0.1228163]
[1759154889213,0.0432297,113470.0,113460.0,0.4836163]
[1759154889414,0.02336,113470.0,113460.0,0.4836163]
[1759154890221,0.0004,113470.0,113460.0,1.43433617]
[1759154890417,0.01984943,113470.0,113460.0,1.43433617]
[1759154890617,0.01984943,113470.0,113460.0,0.8836163]
[1759154890824,0.0004,113470.0,113460.0,0.8836163]
[1759154891023,0.38376,113480.0,113470.0,0.1228086]
[1759154891217,1.26796,113480.0,113470.0,0.1228086]
[1759154891416,0.38456,113480.0,113470.0,0.1228086]
[1759154891617,0.38456,113480.0,113470.0,0.4836086]
[1759154891618,0.02376,113480.0,113470.0,0.4836086]
[1759154892321,0.38456,113480.0,113470.0,0.1228086]
[1759154893017,0.02376,113480.0,113470.0,0.1228086]
[1759154893222,0.02376,113480.0,113470.0,0.1258086]
[1759154893223,0.41956,113480.0,113470.0,0.1258086]
[1759154893418,0.05876,113480.0,113470.0,0.1258086]
[1759154893925,0.04176,113480.0,113470.0,0.1238086]
[1759154894127,0.40256,113480.0,113470.0,0.1238086]
[1759154895026,0.04176,113480.0,113470.0,0.1238086]
[1759154897028,0.40256,113480.0,113470.0,0.1238086]
[1759154898231,0.75484184,113480.0,113470.0,0.47609044]
[1759154898629,0.40256,113480.0,113470.0,0.1238086]
[1759154898927,0.75484184,113480.0,113470.0,0.47609044]
[1759154899231,0.75444184,113480.0,113470.0,0.47609044]
[1759154899431,0.40216,113480.0,113470.0,0.47609044]
[1759154899733,0.75444184,113480.0,113470.0,0.47609044]
[1759154900325,0.39364184,113480.0,113470.0,0.47609044]
[1759154900520,0.0184,113480.0,113470.0,0.87609044]
[1759154900721,0.0184,113480.0,113470.0,1.23689044]
[1759154900921,0.018,113480.0,113470.0,0.8846086]
[1759154901231,0.0184,113480.0,113470.0,1.75889044]
[1759154901628,0.0184,113480.0,113470.0,0.5238086]
[1759154901823,0.0184,113480.0,113470.0,0.87609044]
[1759154902024,0.0184,113480.0,113470.0,1.75885044]
[1759154902330,0.0184,113480.0,113470.0,0.87609044]
[1759154902626,0.0184,113480.0,113470.0,2.11961044]
[1759154903625,0.0184,113480.0,113470.0,1.7672886]
[1759154903828,0.0184,113480.0,113470.0,2.11953044]
[1759154904933,0.0184,113480.0,113470.0,1.23689044]
[1759154905132,0.0184,113480.0,113470.0,2.11953044]
[1759154905834,0.0184,113480.0,113470.0,2.11941044]
[1759154906531,0.0184,113480.0,113470.0,1.23689044]
[1759154906728,0.37068184,113480.0,113470.0,1.75861044]
[1759154907035,1.19432448,113480.0,113470.0,0.03573]
[1759154907229,1.19432448,113480.0,113470.0,0.1238085]
[1759154907530,2.48956448,113480.0,113470.0,0.001]
[1759154907732,2.50940928,113480.0,113470.0,0.0890785]
[1759154908034,2.50940928,113480.0,113470.0,0.001]
[1759154908233,1.47306277,113480.0,113470.0,0.0890785]
[1759154908440,1.47306277,113480.0,113470.0,0.1123385]
[1759154908441,2.35546277,113480.0,113470.0,0.1123385]
[1759154908732,2.35546277,113480.0,113470.0,0.001]
[1759154910234,2.35546277,113480.0,113470.0,0.0890785]
[1759154910731,2.35546277,113480.0,113470.0,0.001]
[1759154910931,2.35546277,113480.0,113470.0,0.0890785]
[1759154911128,2.35546277,113480.0,113470.0,0.001]
[1759154911534,2.35546277,113480.0,113470.0,0.0890787]
[1759154912231,2.24249347,113480.0,113450.0,0.1012621]
[1759154912431,0.91649427,113460.0,113450.0,0.1113521]
[1759154912628,1.81853907,113460.0,113450.0,0.1113521]
[1759154913030,2.17933907,113460.0,113450.0,0.1113521]
[1759154913628,2.17933907,113460.0,113450.0,0.1133521]
[1759154913832,0.8594912,113460.0,113450.0,0.1271621]
[1759154914034,0.7639348,113460.0,113450.0,0.1251621]
[1759154914334,0.91765,113460.0,113450.0,0.1261621]
[1759154914534,0.06249,113460.0,113450.0,0.1281621]
[1759154914726,0.5113764,113460.0,113450.0,0.1281621]
[1759154914933,0.5117764,113460.0,113450.0,0.1281621]
[1759154915324,0.5316476,113460.0,113450.0,0.1281621]
[1759154915539,0.06289,113460.0,113450.0,0.1281621]
[1759154915929,0.06249,113460.0,113450.0,0.1281621]
[1759154916130,0.06289,113460.0,113450.0,0.4889621]
[1759154916433,0.04,113460.0,113450.0,0.90987094]
[1759154916937,0.0404,113460.0,113450.0,2.22955881]
[1759154917433,1.20892,113480.0,113460.0,0.088084]
[1759154917625,0.01984315,113480.0,113470.0,0.1251486]
[1759154917826,0.02064315,113480.0,113470.0,0.1251486]
[1759154918029,0.01984315,113480.0,113470.0,0.1251486]
[1759154918238,0.02024315,113480.0,113470.0,0.1251486]
[1759154919437,0.04273315,113480.0,113470.0,0.1251486]
[1759154920032,0.02024315,113480.0,113470.0,0.5251486]
[1759154920437,0.02024315,113480.0,113470.0,0.1251486]
[1759154920939,0.04273315,113480.0,113470.0,0.1251486]
[1759154921134,0.04273315,113480.0,113470.0,0.1471486]
[1759154921939,0.04273315,113480.0,113470.0,0.1251486]
[1759154922139,0.04273315,113480.0,113470.0,0.1531486]
[1759154923441,0.05599315,113480.0,113470.0,0.1531486]
[1759154923742,0.04273315,113480.0,113470.0,0.1531486]
[1759154926637,0.04273315,113480.0,113470.0,0.1540286]
[1759154927433,0.05599315,113480.0,113470.0,0.1540286]
[1759154928042,0.14406395,113480.0,113470.0,0.1540286]
[1759154928245,0.49637807,113480.0,113470.0,0.1540286]
[1759154928449,0.39504727,113480.0,113470.0,0.1540286]
[1759154929043,0.84391807,113480.0,113470.0,0.1540286]
[1759154929636,0.75584727,113480.0,113470.0,0.1540286]
[1759154930245,0.39504727,113480.0,113470.0,0.1540286]
[1759154931951,0.37520412,113480.0,113470.0,0.1540286]
[1759154933657,0.37520412,113480.0,113470.0,0.1531486]
[1759154934045,0.02289,113480.0,113470.0,0.1531486]
[1759154934250,0.37520412,113480.0,113470.0,0.1531486]
[1759154935160,0.02289,113480.0,113470.0,0.1531486]
[1759154936456,0.37520412,113480.0,113470.0,0.1531486]
[1759154936660,0.73600412,113480.0,113470.0,0.1540286]
[1759154936855,0.37520412,113480.0,113470.0,0.1540286]
[1759154939064,0.02289,113480.0,113470.0,0.1540286]
[1759154939260,0.37520412,113480.0,113470.0,0.1540286]
[1759154941159,0.02289,113480.0,113470.0,0.1540286]
[1759154941362,0.37520412,113480.0,113470.0,0.1540286]
[1759154942865,0.0004,113480.0,113470.0,0.5148286]
[1759154944460,0.0004,113480.0,113470.0,0.86714272]
[1759154945053,0.83564252,113500.0,113490.0,0.111003]
[1759154945358,0.84264752,113500.0,113490.0,0.124723]
[1759154945759,0.84304752,113500.0,113490.0,0.124723]
[1759154945955,0.84264752,113500.0,113490.0,0.124723]
[1759154946161,0.85504752,113500.0,113490.0,0.124723]
[1759154946362,0.86104752,113500.0,113490.0,0.124723]
[1759154947364,0.84120252,113500.0,113490.0,0.124723]
[1759154947568,0.82620252,113500.0,113490.0,0.124723]
[1759154947767,0.4738884,113500.0,113490.0,0.124723]
[1759154947972,0.73474412,113500.0,113490.0,0.124723]
[1759154948162,0.82919932,113500.0,113490.0,0.124723]
[1759154948669,0.84904257,113500.0,113490.0,0.124723]
[1759154948873,0.76098737,113500.0,113490.0,0.124723]
[1759154949968,0.84904297,113500.0,113490.0,0.124723]
[1759154950671,0.84904337,113500.0,113490.0,0.124723]
[1759154951166,0.0016,113530.0,113520.0,0.03666]
[1759154951463,0.0016,113530.0,113520.0,1.00621452]
[1759154952057,0.0016,113530.0,113520.0,1.0046604]
[1759154952263,0.0016,113530.0,113520.0,0.1247004]
[1759154952458,0.11974815,113550.0,113520.0,0.1247004]
[1759154952459,0.37394412,113540.0,113530.0,0.110967]
[1759154952665,0.02163,113540.0,113530.0,0.124687]
[1759154952966,0.02163,113540.0,113530.0,1.004567]
[1759154952967,0.37474412,113540.0,113530.0,1.004567]
[1759154953365,0.37474412,113540.0,113530.0,1.365367]
[1759154953669,0.76647467,113550.0,113540.0,0.1246846]
[1759154954069,0.76727467,113550.0,113540.0,0.1246846]